bitfinex-derivatives/quotes_SOLF0:USTF0_20250331
["timestamp","ask_amount","ask_price","bid_price","bid_amount"]
[1743406919376,7.9868689,126.06,126.05,30.4]
[1743406919568,0.0535689,126.06,126.05,30.4]
[1743406919773,0.0535689,126.06,126.04,0.05233813]
[1743406920066,7.9339,126.05,126.04,0.05233813]
[1743406921477,0.0535689,126.06,126.0,30.48]
[1743406921478,7.9367,126.01,126.0,30.48]
[1743406922473,7.9371,126.0,125.99,0.06076028]
[1743406922672,7.9371,126.0,125.91,374.32989493]
[1743406922673,44.83849493,126.0,125.91,374.32989493]
[1743406922875,44.83849493,126.0,125.91,404.82989493]
[1743406923079,44.83849493,126.0,125.91,402.83849493]
[1743406923272,14.33849493,125.98,125.91,358.0]
[1743406923473,14.33849493,125.96,125.91,358.0]
[1743406923678,30.52,125.97,125.89,417.59364017]
[1743406923977,14.33849493,126.02,125.93,14.33849493]
[1743406924175,14.33849493,126.02,125.94,30.58]
[1743406924677,7.9384,125.98,125.95,7.9399]
[1743406925180,7.99830124,125.98,125.95,7.99981318]
[1743406925480,0.05990124,125.98,125.95,7.99981318]
[1743406926176,7.99830124,125.98,125.95,7.99981318]
[1743406926580,0.05990124,125.98,125.96,7.9395]
[1743406926881,0.05990124,125.98,125.95,0.05991318]
[1743406927077,0.05990124,125.98,125.95,7.99981318]
[1743406927477,0.05990124,125.98,125.96,7.9395]
[1743406927677,0.05990124,125.98,125.95,0.05991318]
[1743406927981,7.99830124,125.98,125.95,0.05991318]
[1743406928275,0.05990124,125.98,125.96,7.9394]
[1743406928680,0.05990124,125.98,125.95,0.05991318]
[1743406928876,14.39839617,125.98,125.95,0.05991318]
[1743406929577,14.39839617,125.98,125.92,30.56]
[1743406929778,14.33849493,125.96,125.9,7.9431]
[1743406930082,7.9419,125.93,125.9,38.4831]
[1743406930577,7.9419,125.93,125.91,7.9427]
[1743406930774,7.9419,125.93,125.9,30.59786287]
[1743406930775,0.05582671,125.93,125.9,30.59786287]
[1743406931180,0.05582671,125.93,125.92,7.9418]
[1743406931580,0.05582671,125.93,125.9,30.59786287]
[1743406931780,0.05582671,125.93,125.91,7.9424]
[1743406932181,0.05582671,125.93,125.92,7.9421]
[1743406936782,0.05582671,125.93,125.9,38.54066287]
[1743406936981,0.05582671,125.93,125.9,30.59786287]
[1743406937380,0.05582671,125.93,125.9,38.54066287]
[1743406937585,7.99752671,125.93,125.9,30.59786287]
[1743406937988,7.99752671,125.93,125.9,0.05786287]
[1743406938286,7.9422,125.92,125.9,30.45786287]
[1743406938677,7.99762671,125.93,125.9,30.45786287]
[1743406939392,7.9422,125.92,125.9,30.45786287]
[1743406940786,7.9428,125.91,125.9,30.45786287]
[1743406940991,7.9428,125.91,125.9,0.05786287]
[1743406943291,7.9425,125.92,125.9,0.05786287]
[1743406944286,7.99762671,125.93,125.9,8.00116287]
[1743406945293,7.9423,125.92,125.9,0.05786287]
[1743406945990,0.05582671,125.93,125.9,0.05786287]
[1743406946695,7.9424,125.92,125.9,0.05786287]
[1743406946888,0.05582671,125.93,125.9,0.05786287]
[1743406947195,14.33849493,125.92,125.86,7.9455]
[1743406947492,14.33849493,125.92,125.85,30.4]
[1743406947694,7.9437,125.9,125.87,7.945]
[1743406948289,7.944,125.89,125.87,8.00222636]
[1743406948492,0.05536404,125.9,125.87,8.00222636]
[1743406949296,0.05536404,125.9,125.88,7.9445]
[1743406949493,0.05536404,125.9,125.88,30.4]
[1743406949693,0.05536404,125.9,125.89,7.944]
[1743406953098,7.99876404,125.9,125.88,38.3441]
[1743406953294,0.05536404,125.9,125.87,0.05722636]
[1743406953495,44.81385897,125.9,125.81,14.33849493]
[1743406953699,7.9462,125.86,125.84,7.9469]
[1743406954400,2.1646,125.89,125.85,7.9465]
[1743406954700,0.05827566,125.88,125.86,0.06020217]
[1743406955301,8.00327566,125.88,125.86,0.06020217]
[1743406955803,0.05827566,125.88,125.86,8.00600217]
[1743406955996,0.05827566,125.88,125.86,0.06020217]
[1743406956799,0.05827566,125.88,125.87,7.9453]
[1743406956996,0.05827566,125.88,125.86,0.06020217]
[1743406957391,0.05827566,125.88,125.87,7.9453]
[1743406957593,0.05827566,125.88,125.86,0.06020217]
[1743406958104,8.00327566,125.88,125.86,8.00600217]
[1743406959006,0.05827566,125.88,125.86,8.00600217]
[1743406959700,8.00307566,125.88,125.86,8.00600217]
[1743406960905,0.05827566,125.88,125.87,7.9453]
[1743406968503,0.05827566,125.88,125.86,0.06020217]
[1743406968909,7.947,125.85,125.82,324.2681]
[1743406969112,7.947,125.85,125.82,38.3681]
[1743406969309,16.47099493,125.88,125.81,14.33849493]
[1743406969619,16.47099493,125.88,125.82,30.42]
[1743406969810,2.1325,125.88,125.82,30.42]
[1743406970016,7.9455,125.87,125.85,7.9464]
[1743406970207,0.05269087,125.86,125.85,7.9464]
[1743406973718,7.99889087,125.86,125.84,8.00397194]
[1743406974317,0.05269087,125.86,125.85,7.9466]
[1743406975219,0.05269087,125.86,125.84,8.00397194]
[1743406976022,7.99879087,125.86,125.84,8.00397194]
[1743406976624,0.05269087,125.86,125.84,8.00397194]
[1743406976824,0.05269087,125.86,125.84,0.05717194]
[1743406977321,7.9466,125.85,125.84,0.05717194]
[1743406978927,7.9488,125.82,125.78,358.0]
[1743406979127,7.9488,125.82,125.79,30.42]
[1743406979728,7.9488,125.82,125.79,38.3698]
[1743406979930,7.9482,125.83,125.79,30.42]
[1743406980130,0.0548484,125.82,125.79,30.42]
[1743406980332,0.0548484,125.82,125.8,7.9494]
[1743406981433,8.0034484,125.82,125.8,7.9494]
[1743406982331,0.0548484,125.82,125.79,30.42]
[1743406982931,14.33849493,125.9,125.8,14.33849493]
[1743406983120,14.33849493,125.9,125.82,14.33849493]
[1743406983320,7.9449,125.88,125.86,7.9459]
[1743406983529,14.33849493,125.9,125.86,7.9459]
[1743406983726,14.33849493,125.9,125.83,30.42]
[1743406984034,0.05334953,125.87,125.85,0.05550494]
[1743406984428,7.9432,125.91,125.89,7.944]
[1743406984731,7.99507404,125.91,125.89,7.944]
[1743406984933,7.99507404,125.91,125.89,8.00072226]
[1743406985232,7.9434,125.9,125.89,0.05672226]
[1743406985432,0.05187404,125.91,125.85,30.42]
[1743406985728,7.945,125.88,125.85,30.42]
[1743406985933,16.34629493,125.92,125.85,30.42]
[1743406986134,7.9456,125.87,125.85,30.42]
[1743406986333,16.34629493,125.92,125.85,30.42]
[1743406986728,0.05469403,125.9,125.87,7.945]
[1743406987030,0.05469403,125.9,125.85,30.42]
[1743406987434,7.9443,125.89,125.86,7.9456]
[1743406987636,7.9443,125.89,125.85,30.42]
[1743406987834,7.9443,125.89,125.87,7.9451]
[1743406988037,7.99839403,125.9,125.87,7.9451]
[1743406988233,0.05469403,125.9,125.87,7.9451]
[1743406988432,0.05469403,125.9,125.86,7.9456]
[1743406988634,7.9444,125.89,125.86,7.9456]
[1743406989232,7.9448,125.88,125.86,7.9456]
[1743406989437,7.9448,125.88,125.85,38.3661]
[1743406989638,0.05469403,125.9,125.85,38.3661]
[1743406990333,7.9442,125.89,125.86,7.9459]
[1743406990537,0.05469403,125.9,125.85,30.42]
[1743406990739,0.05469403,125.9,125.85,44.75849493]
[1743406991040,7.99819403,125.9,125.88,7.9445]
[1743406991233,0.05469403,125.9,125.85,44.75849493]
[1743406991433,7.9444,125.89,125.87,7.9452]
[1743406991738,0.05469403,125.9,125.85,30.42]
[1743406991939,7.9451,125.88,125.86,7.9458]
[1743406992331,0.05469403,125.9,125.85,30.42]
[1743406992528,7.9441,125.89,125.87,7.9448]
[1743406992840,0.05469403,125.9,125.85,30.42]
[1743406993737,7.99829403,125.9,125.85,30.42]
[1743406994335,7.9442,125.89,125.85,30.42]
[1743406994937,7.9442,125.89,125.86,7.9455]
[1743406995540,0.05469403,125.9,125.85,30.42]
[1743406995845,0.05469403,125.9,125.85,44.75849493]
[1743406996137,0.05469403,125.9,125.87,7.9449]
[1743406996337,7.99809403,125.9,125.87,7.9449]
[1743406997241,7.99809403,125.9,125.88,7.9446]
[1743406997733,0.05469403,125.9,125.88,7.9446]
[1743406998339,0.05469403,125.9,125.87,7.9452]
[1743406998939,0.05469403,125.9,125.85,44.75849493]
[1743406999131,0.05469403,125.9,125.85,30.42]
[1743406999338,7.9443,125.89,125.85,30.42]
[1743406999538,0.05469403,125.9,125.87,7.9449]
[1743406999730,9.213524,125.9,125.87,7.9449]
[1743406999933,9.213524,125.9,125.88,7.9444]
[1743407000330,17.157524,125.9,125.88,7.9444]
[1743407000539,9.213524,125.9,125.85,39.57882997]
[1743407000938,7.9449,125.88,125.85,39.57882997]
[1743407001133,7.9449,125.88,125.86,7.9456]
[1743407001338,9.213524,125.9,125.85,39.57882997]
[1743407001539,7.9443,125.89,125.85,39.57882997]
[1743407001841,9.213524,125.9,125.85,39.57882997]
[1743407002343,0.05469403,125.9,125.89,7.944]
[1743407005545,0.05469403,125.9,125.86,9.15882997]
[1743407005742,9.213524,125.9,125.85,39.57882997]
[1743407005934,9.213524,125.9,125.85,39.55882997]
[1743407006439,9.213524,125.9,125.85,9.15882997]
[1743407006640,9.213524,125.9,125.85,39.55882997]
[1743407007341,17.157224,125.9,125.88,7.9447]
[1743407007642,9.213524,125.9,125.85,39.55882997]
[1743407007842,7.9447,125.88,125.86,7.9456]
[1743407008044,9.213524,125.9,125.85,39.55882997]
[1743407008442,7.945,125.88,125.86,7.9456]
[1743407009745,7.9453,125.87,125.85,47.50502997]
[1743407010244,8.00196102,125.87,125.85,47.50502997]
[1743407010444,9.15882997,125.86,125.81,295.07882997]
[1743407010638,9.15882997,125.85,125.8,39.55882997]
[1743407010844,9.15882997,125.84,125.8,30.4]
[1743407011044,7.9484,125.83,125.8,38.3494]
[1743407011243,7.9484,125.83,125.8,30.4]
[1743407011643,7.9484,125.83,125.81,7.949]
[1743407013247,0.0515749,125.84,125.8,39.55882997]
[1743407013646,0.0515749,125.84,125.8,30.4]
[1743407013848,0.0515749,125.84,125.82,7.9481]
[1743407014149,0.0515749,125.84,125.8,30.4]
[1743407015248,7.9988749,125.84,125.8,30.4]
[1743407015444,0.0515749,125.84,125.8,30.4]
[1743407015644,0.0515749,125.84,125.79,38.35]
[1743407015948,0.0515749,125.84,125.79,30.4]
[1743407016648,7.9486,125.82,125.8,7.9494]
[1743407017050,7.9486,125.82,125.79,30.4]
[1743407017945,7.9486,125.82,125.8,7.9494]
[1743407018348,7.9491,125.81,125.79,30.4]
[1743407018549,44.7217454,125.85,125.79,30.4]
[1743407018749,0.05207749,125.81,125.78,365.9505]
[1743407018948,0.05207749,125.81,125.78,358.0]
[1743407019450,0.05207749,125.81,125.8,7.9497]
[1743407020350,0.05207749,125.81,125.78,388.4]
[1743407020551,0.05207749,125.81,125.78,30.4]
[1743407021452,0.05207749,125.81,125.76,14.3217454]
[1743407021652,0.05207749,125.81,125.77,30.4]
[1743407021850,0.05207749,125.81,125.75,4.0836]
[1743407022043,7.9516,125.77,125.75,38.3525]
[1743407022248,14.3217454,125.81,125.75,30.4]
[1743407022547,0.0547703,125.77,125.75,30.4]
[1743407023145,0.0547703,125.77,125.74,658.2217454]
[1743407023349,0.0547703,125.77,125.75,30.4]
[1743407023856,0.0547703,125.77,125.76,7.9522]
[1743407024051,2.0788,125.84,125.76,14.3217454]
[1743407024252,2.0788,125.84,125.76,18.5268454]
[1743407024554,7.9482,125.83,125.76,18.5268454]
[1743407024747,2.0788,125.84,125.76,18.5268454]
[1743407025152,10.0264,125.84,125.81,7.9486]
[1743407025353,30.4,125.88,125.81,30.4]
[1743407025655,0.0559001,125.84,125.81,30.4]
[1743407025854,0.0559001,125.84,125.82,0.05488284]
[1743407026255,8.0033001,125.84,125.82,8.00308284]
[1743407026755,7.9478,125.83,125.82,0.05488284]
[1743407033263,38.34,125.83,125.74,285.9]
[1743407033556,14.3217454,125.81,125.73,30.4]
[1743407033858,9.17628864,125.78,125.73,39.57628864]
[1743407034052,9.17628864,125.78,125.71,445.13514524]
[1743407034053,9.17628864,125.77,125.72,9.17628864]
[1743407034253,9.17628864,125.76,125.71,39.57628864]
[1743407034555,9.23594733,125.76,125.72,7.9545]
[1743407035160,9.23594733,125.76,125.73,7.9541]
[1743407035658,9.23594733,125.76,125.72,7.9545]
[1743407035860,0.05965869,125.76,125.71,30.4]
[1743407036859,7.9534,125.75,125.72,7.9545]
[1743407037357,7.9534,125.75,125.72,7.9546]
[1743407038254,0.05965869,125.76,125.71,38.355]
[1743407038662,7.9532,125.75,125.72,7.9544]
[1743407038857,7.9532,125.75,125.71,30.4]
[1743407039057,0.05965869,125.76,125.71,30.4]
[1743407039260,7.9544,125.73,125.71,38.3551]
[1743407039659,8.00481995,125.73,125.71,38.3551]
[1743407040361,0.05041995,125.73,125.72,7.9548]
[1743407040661,0.05041995,125.73,125.71,30.4]
[1743407040861,0.05041995,125.73,125.72,7.9548]
[1743407041162,0.05041995,125.73,125.7,34.5077]
[1743407041662,8.00481995,125.73,125.71,7.9551]
[1743407042661,0.05041995,125.73,125.72,7.9548]
[1743407043761,0.05041995,125.73,125.71,7.9551]
[1743407044162,0.05041995,125.73,125.72,7.9548]
[1743407044662,16.39881863,125.79,125.72,14.34121863]
[1743407044865,14.34121863,125.79,125.75,7.9524]
[1743407045260,7.9513,125.78,125.73,30.42]
[1743407045458,7.9513,125.78,125.76,7.9521]
[1743407045661,7.9521,125.77,125.73,30.42]
[1743407045862,7.9521,125.77,125.76,0.05392813]
[1743407047256,8.00632158,125.78,125.76,0.05392813]
[1743407047662,0.05492158,125.78,125.76,0.05392813]
[1743407048165,7.9516,125.77,125.76,0.05392813]
[1743407048560,22.29281863,125.77,125.76,0.05392813]
[1743407052164,7.9516,125.77,125.76,0.05392813]
[1743407052368,8.00642158,125.78,125.76,0.05392813]
[1743407052667,8.00642158,125.78,125.76,8.00612813]
[1743407053468,0.05492158,125.78,125.76,0.05392813]
[1743407054067,8.00632158,125.78,125.76,0.05392813]
[1743407054669,7.9516,125.77,125.76,0.05392813]
[1743407055762,0.05492158,125.78,125.76,0.05392813]
[1743407056168,8.00612158,125.78,125.76,0.05392813]
[1743407057063,0.05492158,125.78,125.76,0.05392813]
[1743407057268,0.05492158,125.78,125.76,30.45392813]
[1743407057869,0.05492158,125.78,125.77,17.12253275]
[1743407058971,0.05492158,125.78,125.77,9.17093275]
[1743407059672,0.05492158,125.78,125.77,17.12253275]
[1743407060772,7.9494,125.81,125.78,7.9507]
[1743407060972,9.17093275,125.82,125.77,9.17093275]
[1743407061467,9.17093275,125.81,125.76,39.57093275]
[1743407061672,9.17093275,125.82,125.77,9.17093275]
[1743407061873,0.05432587,125.8,125.79,9.17093275]
[1743407062076,9.17093275,125.83,125.79,39.57093275]
[1743407062373,0.05736079,125.81,125.79,39.57093275]
[1743407063673,0.05736079,125.81,125.8,7.9497]
[1743407077592,8.00646079,125.81,125.8,7.9497]
[1743407077889,8.00646079,125.81,125.79,47.52093275]
[1743407078090,8.00646079,125.81,125.79,38.35]
[1743407079296,0.05736079,125.81,125.79,30.4]
[1743407079794,8.00666079,125.81,125.79,38.3501]
[1743407081396,0.05736079,125.81,125.8,7.9497]
[1743407082601,8.00646079,125.81,125.79,38.35]
[1743407084798,0.05736079,125.81,125.8,7.9497]
[1743407087101,9.17093275,125.85,125.82,7.9483]
[1743407087499,7.9474,125.84,125.82,7.9483]
[1743407087996,7.9474,125.84,125.8,9.17093275]
[1743407088190,8.00417808,125.84,125.82,0.05785963]
[1743407088395,8.00417808,125.84,125.82,8.00625963]
[1743407088599,7.9478,125.83,125.82,0.05785963]
[1743407089498,17.11873275,125.83,125.82,0.05785963]
[1743407092403,8.00407808,125.84,125.82,0.05785963]
[1743407092804,0.05677808,125.84,125.82,0.05785963]
[1743407093800,7.9478,125.83,125.82,0.05785963]
[1743407095907,9.22771083,125.84,125.82,0.05785963]
[1743407096907,7.9478,125.83,125.82,0.05785963]
[1743407099104,8.00427808,125.84,125.82,0.05785963]
[1743407099507,0.05677808,125.84,125.82,30.41785963]
[1743407099701,0.05677808,125.84,125.83,9.17093275]
[1743407100005,9.17093275,125.88,125.83,9.17093275]
[1743407100006,7.9447,125.88,125.83,9.17093275]
[1743407100207,7.9447,125.88,125.84,9.17093275]
[1743407100404,7.9447,125.88,125.85,30.36]
[1743407100603,7.9447,125.88,125.86,7.9456]
[1743407101007,7.99897704,125.88,125.86,8.00609538]
[1743407101211,0.05427704,125.88,125.86,8.00609538]
[1743407102610,9.17093275,125.92,125.87,9.17093275]
[1743407102909,4.0517,125.93,125.89,9.17093275]
[1743407103106,7.9422,125.92,125.9,30.36]
[1743407103403,4.0517,125.93,125.9,30.36]
[1743407103811,7.9428,125.91,125.9,30.41196648]
[1743407104012,17.11373275,125.91,125.9,0.05196648]
[1743407104212,9.17093275,125.91,125.86,30.36]
[1743407104412,9.17093275,125.89,125.86,30.36]
[1743407105003,9.17093275,125.88,125.86,30.36]
[1743407105408,9.22570661,125.88,125.86,30.41154505]
[1743407105809,7.9453,125.87,125.86,30.41154505]
[1743407106608,17.11623275,125.87,125.86,0.05154505]
[1743407106812,7.9453,125.87,125.86,0.05154505]
[1743407107010,17.11623275,125.87,125.86,0.05154505]
[1743407107211,0.05477386,125.88,125.86,0.05154505]
[1743407107711,0.05477386,125.88,125.87,7.9453]
[1743407108017,0.05477386,125.88,125.87,38.3053]
[1743407108418,0.05477386,125.88,125.87,30.36]
[1743407108618,9.22570661,125.88,125.86,0.05154505]
[1743407108918,17.17070661,125.88,125.86,7.99734505]
[1743407109120,9.22570661,125.88,125.86,0.05154505]
[1743407109518,7.9453,125.87,125.86,0.05154505]
[1743407109914,17.11623275,125.87,125.86,0.05154505]
[1743407110114,7.9453,125.87,125.86,0.05154505]
[1743407110417,17.11623275,125.87,125.86,0.05154505]
[1743407114523,39.53093275,125.87,125.8,358.0]
[1743407114720,9.17093275,125.82,125.8,358.0]
[1743407114918,9.17093275,125.82,125.79,286.06]
[1743407115421,9.17093275,125.82,125.78,39.53093275]
[1743407115622,7.9497,125.81,125.79,0.05135861]
[1743407116420,9.17093275,125.8,125.79,0.05135861]
[1743407117122,17.12063275,125.8,125.79,0.05135861]
[1743407117420,9.17093275,125.81,125.79,0.05135861]
[1743407117716,9.17093275,125.8,125.79,0.05135861]
[1743407118322,17.12063275,125.8,125.79,0.05135861]
[1743407120623,7.9497,125.8,125.79,0.05135861]
[1743407120925,7.9493,125.81,125.79,0.05135861]
[1743407121523,9.22381515,125.82,125.79,0.05135861]
[1743407121717,9.17093275,125.81,125.79,0.05135861]
[1743407121916,7.9497,125.8,125.79,0.05135861]
[1743407124418,17.12013275,125.81,125.79,8.00165861]
[1743407124725,0.0528824,125.82,125.79,39.58229136]
[1743407125032,0.0528824,125.82,125.81,9.17093275]
[1743407125323,9.17093275,125.87,125.81,9.17093275]
[1743407125626,17.11643275,125.87,125.85,7.9464]
[1743407125823,9.17093275,125.87,125.83,30.36]
[1743407126117,9.17093275,125.86,125.83,30.36]
[1743407126519,9.22910569,125.86,125.83,30.41458204]
[1743407126923,7.9469,125.85,125.83,30.41458204]
[1743407127227,9.22910569,125.86,125.83,30.41458204]
[1743407127418,9.22910569,125.86,125.83,38.36228204]
[1743407127620,9.22910569,125.86,125.83,30.41458204]
[1743407127921,7.9469,125.85,125.83,38.36218204]
[1743407128323,0.05817294,125.86,125.83,30.41458204]
[1743407128523,7.9472,125.84,125.83,30.41458204]
[1743407129027,7.9469,125.85,125.83,38.36238204]
[1743407129624,0.05817294,125.86,125.83,30.41458204]
[1743407130017,0.05817294,125.86,125.85,7.9466]
[1743407132623,7.9436,125.9,125.88,7.9445]
[1743407133123,7.9436,125.9,125.87,30.34]
[1743407133324,7.9436,125.9,125.87,38.2848]
[1743407133524,7.9442,125.89,125.87,30.34]
[1743407133726,7.9442,125.89,125.87,30.4009449]
[1743407134728,7.9442,125.89,125.87,38.3459449]
[1743407135127,7.99408047,125.9,125.88,7.9447]
[1743407135620,0.05048047,125.9,125.87,30.4009449]
[1743407135822,0.05048047,125.9,125.88,7.9447]
[1743407136025,0.05048047,125.9,125.87,30.4009449]
[1743407136626,0.05048047,125.9,125.89,7.944]
[1743407137230,0.05048047,125.9,125.88,7.9443]
[1743407137726,7.99388047,125.9,125.87,30.4009449]
[1743407138518,7.99388047,125.9,125.87,38.3457449]
[1743407139527,7.99388047,125.9,125.88,7.9447]
[1743407141323,0.05048047,125.9,125.88,7.9447]
[1743407142129,7.99428047,125.9,125.88,7.9447]
[1743407143632,7.9444,125.89,125.87,8.0058449]
[1743407144926,0.05048047,125.9,125.87,0.0609449]
[1743407145124,14.31879151,125.88,125.82,358.0]
[1743407145323,14.31879151,125.88,125.83,30.32]
[1743407145627,14.31879151,125.88,125.8,88.36446171]
[1743407145628,14.31879151,125.86,125.8,88.36446171]
[1743407145830,14.31879151,125.86,125.8,118.68446171]
[1743407146130,14.31879151,125.86,125.8,126.63406171]
[1743407146333,0.06117821,125.84,125.82,0.06017123]
[1743407146528,7.9478,125.83,125.82,0.06017123]
[1743407148230,7.9503,125.79,125.78,88.36446171]
[1743407150131,7.9503,125.79,125.77,0.05444904]
[1743407150632,7.951,125.78,125.77,0.05444904]
[1743407152537,16.38239151,125.79,125.71,617.632049]
[1743407152740,14.31879151,125.76,125.69,88.36446171]
[1743407152941,14.31879151,125.74,125.69,118.68446171]
[1743407153239,14.31879151,125.74,125.69,88.36446171]
[1743407153739,0.05764706,125.73,125.7,0.05793897]
[1743407154140,14.31879151,125.72,125.7,0.05793897]
[1743407156243,7.9554,125.71,125.7,0.05793897]
[1743407156838,0.05764706,125.73,125.7,0.05793897]
[1743407157542,0.05764706,125.73,125.71,7.955]
[1743407158846,0.05764706,125.73,125.72,7.9548]
[1743407159246,0.05764706,125.73,125.72,38.2948]
[1743407161550,46.71059151,125.8,125.74,7.9531]
[1743407161741,2.0109,125.81,125.75,30.34]
[1743407162546,2.0109,125.81,125.72,14.31879151]
[1743407162547,2.0917,125.8,125.74,7.9534]
[1743407162849,2.0917,125.8,125.77,0.05615288]
[1743407162850,0.05094896,125.79,125.77,0.05615288]
[1743407163250,8.00164896,125.79,125.77,0.05615288]
[1743407163549,0.05094896,125.79,125.77,0.05615288]
[1743407164247,0.05094896,125.79,125.77,8.00765288]
[1743407164450,0.05094896,125.79,125.77,0.05615288]
[1743407164949,0.05094896,125.79,125.77,8.00725288]
[1743407165752,8.00154896,125.79,125.77,0.05615288]
[1743407165948,0.05094896,125.79,125.77,0.05615288]
[1743407166252,7.951,125.78,125.77,0.05615288]
[1743407170052,0.05094896,125.79,125.77,0.05615288]
[1743407170754,7.951,125.78,125.77,0.05615288]
[1743407171957,22.26979151,125.78,125.77,0.05615288]
[1743407172663,14.31879151,125.78,125.7,658.49879151]
[1743407172962,14.31879151,125.74,125.66,14.31879151]
[1743407173353,14.31879151,125.72,125.67,38.2776]
[1743407173561,14.31879151,125.72,125.66,30.32]
[1743407173866,7.9563,125.7,125.68,0.05665669]
[1743407174161,0.05648787,125.71,125.68,0.05665669]
[1743407174864,14.31879151,125.7,125.62,132.54669256]
[1743407175059,14.31879151,125.68,125.62,132.54669256]
[1743407175265,14.31879151,125.68,125.63,7.9604]
[1743407175558,14.31879151,125.68,125.62,30.34]
[1743407175762,14.31879151,125.68,125.62,38.3008]
[1743407175961,7.9596,125.65,125.62,38.3008]
[1743407176158,14.37118962,125.66,125.64,0.05408175]
[1743407176564,14.37118962,125.66,125.6,358.0]
[1743407176763,14.37118962,125.66,125.64,0.05408175]
[1743407177060,7.9608,125.63,125.6,358.0]
[1743407177266,14.31879151,125.66,125.6,358.0]
[1743407177767,16.47959151,125.66,125.6,358.0]
[1743407178371,0.05634892,125.64,125.6,358.0]
[1743407178964,0.05634892,125.64,125.59,30.34]
[1743407179166,0.05634892,125.64,125.6,14.31879151]
[1743407179663,0.05634892,125.64,125.63,7.9605]
[1743407179868,30.34,125.71,125.63,30.34]
[1743407179869,14.31879151,125.7,125.63,30.34]
[1743407180262,14.31879151,125.72,125.68,7.9572]
[1743407180462,14.31879151,125.72,125.66,30.34]
[1743407180867,7.9557,125.71,125.68,7.9569]
[1743407181068,0.05116471,125.7,125.68,0.05634892]
[1743407181468,8.00726471,125.7,125.68,0.05634892]
[1743407181670,0.05116471,125.7,125.68,0.05634892]
[1743407182269,7.9567,125.69,125.68,0.05634892]
[1743407183867,7.9588,125.66,125.64,30.34]
[1743407184072,7.9588,125.66,125.62,30.34]
[1743407184272,7.9583,125.67,125.64,7.9597]
[1743407184767,14.31879151,125.7,125.62,30.34]
[1743407185068,0.05803342,125.67,125.63,16.44179151]
[1743407185263,16.35999151,125.72,125.63,16.44179151]
[1743407185264,9.9963,125.72,125.65,14.31879151]
[1743407185469,2.0412,125.72,125.66,30.34]
[1743407185674,2.1608,125.73,125.66,30.34]
[1743407186371,7.9551,125.72,125.69,7.9561]
[1743407186674,0.05830771,125.71,125.69,7.9561]
[1743407186869,0.05830771,125.71,125.68,0.05771412]
[1743407187376,0.05830771,125.71,125.7,7.956]
[1743407189275,22.96401374,125.79,125.74,7.9532]
[1743407189572,53.30401374,125.79,125.72,30.34]
[1743407189774,53.30401374,125.79,125.73,7.9537]
[1743407190079,53.30401374,125.79,125.72,30.34]
[1743407190581,0.05870614,125.76,125.74,0.05799121]
[1743407190880,8.01100614,125.76,125.74,0.05799121]
[1743407191382,7.9529,125.75,125.74,0.05799121]
[1743407192575,7.9548,125.72,125.7,30.34]
[1743407193079,7.9548,125.72,125.7,38.296]
[1743407193679,8.01323891,125.72,125.7,38.34953229]
[1743407194179,8.01323891,125.72,125.7,0.05353229]
[1743407194380,7.9554,125.71,125.7,0.05353229]
[1743407194771,0.05843891,125.72,125.7,0.05353229]
[1743407195281,8.01373891,125.72,125.7,0.05353229]
[1743407195482,0.05843891,125.72,125.7,0.05353229]
[1743407195881,8.01353891,125.72,125.7,8.00913229]
[1743407197876,0.05843891,125.72,125.71,7.9554]
[1743407198680,0.05843891,125.72,125.7,8.00933229]
[1743407198883,0.05843891,125.72,125.7,0.05353229]
[1743407199780,8.01363891,125.72,125.7,0.05353229]
[1743407200485,0.05843891,125.72,125.7,0.05353229]
[1743407200886,0.05843891,125.72,125.7,8.00923229]
[1743407201186,8.01343891,125.72,125.7,8.00923229]
[1743407201987,0.05843891,125.72,125.7,8.00923229]
[1743407202285,0.05843891,125.72,125.7,0.05353229]
[1743407202482,8.01373891,125.72,125.7,0.05353229]
[1743407202678,8.01373891,125.72,125.7,8.00923229]
[1743407202984,7.9554,125.71,125.7,0.05353229]
[1743407203486,7.9577,125.68,125.66,7.9583]
[1743407203681,32.3923,125.72,125.65,30.32]
[1743407203886,2.0723,125.72,125.65,30.32]
[1743407204086,2.0723,125.72,125.68,7.9572]
[1743407204284,2.0723,125.72,125.65,30.32]